bitfinex/quotes_SOLUSD_20251120
["timestamp","ask_amount","ask_price","bid_price","bid_amount"]
[1763626786112,1.66,143.47,143.45,3.33698899]
[1763626786930,1.66,143.47,143.45,4.80745937]
[1763626787507,6.96930901,143.49,143.46,4.80745937]
[1763626787707,1.66,143.48,143.47,4.08745937]
[1763626788015,1.66,143.48,143.46,4.80745937]
[1763626788226,1.66,143.48,143.47,4.80745937]
[1763626788735,1.66,143.48,143.47,4.08745937]
[1763626789944,1.66,143.48,143.47,4.80745937]
[1763626790625,1.66,143.48,143.47,4.08745937]
[1763626791930,1.66,143.48,143.47,4.76745937]
[1763626793324,1.66,143.48,143.47,11.73755764]
[1763626796431,7.61784314,143.52,143.47,11.73755764]
[1763626796726,1.66,143.51,143.49,4.08745937]
[1763626797632,1.66,143.51,143.49,4.76745937]
[1763626797934,1.66,143.51,143.5,4.08745937]
[1763626798530,1.66,143.51,143.5,11.05610048]
[1763626798732,1.66,143.51,143.5,11.73610048]
[1763626799840,1.66,143.51,143.5,10.91120048]
[1763626800736,18.12096,143.5,143.45,6.5367455]
[1763626800924,18.77096,143.5,143.45,4.76745937]
[1763626801126,0.65,143.49,143.46,4.08745937]
[1763626801836,0.65,143.49,143.46,11.05796881]
[1763626802223,25.73977234,143.5,143.46,11.73796881]
[1763626803027,25.73977234,143.5,143.46,4.76745937]
[1763626803237,0.65,143.49,143.46,4.76745937]
[1763626803539,1.66,143.48,143.46,4.76745937]
[1763626804268,25.73954466,143.51,143.46,4.76745937]
[1763626804467,2.31,143.5,143.46,4.76745937]
[1763626804946,1.66,143.49,143.46,4.76745937]
[1763626806167,6.96961248,143.48,143.46,4.76745937]
[1763626806542,6.96961248,143.48,143.46,0.68]
[1763626808671,6.96961248,143.48,143.45,4.08745937]
[1763626808865,6.96961248,143.48,143.45,4.76745937]
[1763626809270,4.73745937,143.47,143.41,6.5367455]
[1763626809445,1.66,143.46,143.42,0.68]
[1763626809765,1.66,143.46,143.43,4.08745937]
[1763626809944,1.66,143.46,143.44,0.68]
[1763626810740,2.31,143.46,143.42,0.68]
[1763626810943,0.65,143.47,143.42,4.76745937]
[1763626811169,1.66,143.46,143.42,4.76745937]
[1763626811467,6.97107005,143.45,143.43,0.68]
[1763626812449,7.62107005,143.45,143.42,4.08745937]
[1763626812760,7.62107005,143.45,143.41,4.76745937]
[1763626813667,7.62107005,143.45,143.42,0.68]
[1763626813867,6.97107005,143.45,143.42,4.76745937]
[1763626815153,6.97107005,143.45,143.42,0.68]
[1763626815377,7.62107005,143.45,143.41,4.08745937]
[1763626815564,7.62107005,143.45,143.41,4.76745937]
[1763626815868,7.62107005,143.45,143.42,0.68]
[1763626815869,6.97107005,143.45,143.42,0.68]
[1763626816083,1.66,143.44,143.43,4.08745937]
[1763626816454,1.66,143.44,143.42,0.68]
[1763626816776,1.66,143.44,143.42,4.76745937]
[1763626819442,1.66,143.44,143.42,0.68]
[1763626819844,1.66,143.44,143.42,4.76745937]
[1763626820269,18.12096,143.48,143.4,6.97318567]
[1763626820270,18.12096,143.48,143.43,4.77745937]
[1763626820477,1.66,143.47,143.45,4.08745937]
[1763626820767,1.66,143.46,143.45,4.08745937]
[1763626820953,1.66,143.46,143.45,4.77745937]
[1763626821452,1.66,143.46,143.43,6.97168796]
[1763626821761,1.66,143.46,143.43,0.69]
[1763626821968,1.66,143.46,143.44,0.69]
[1763626822169,8.63073337,143.46,143.43,4.77745937]
[1763626822383,9.28073337,143.46,143.43,4.77745937]
[1763626822971,1.66,143.46,143.43,4.77745937]
[1763626823286,1.66,143.45,143.44,4.77745937]
[1763626823575,1.66,143.45,143.44,0.69]
[1763626824159,22.15840166,143.51,143.44,4.77745937]
[1763626824342,1.66,143.5,143.46,4.08745937]
[1763626824545,2.31,143.5,143.46,4.77745937]
[1763626825267,9.27866779,143.5,143.46,4.77745937]
[1763626825662,9.27866779,143.5,143.46,0.69]
[1763626825875,9.27866779,143.5,143.46,4.77745937]
[1763626826756,26.70027057,143.5,143.46,0.69]
[1763626827046,26.70027057,143.5,143.46,4.77745937]
[1763626827449,0.65,143.49,143.44,0.7]
[1763626827754,0.65,143.49,143.44,4.78745937]
[1763626828350,0.65,143.49,143.44,4.08745937]
[1763626828565,1.66,143.48,143.45,0.7]
[1763626829647,6.97009827,143.47,143.45,0.7]
[1763626830166,8.62978036,143.48,143.45,0.7]
[1763626830675,9.27978036,143.48,143.45,0.7]
[1763626830973,9.27978036,143.48,143.44,4.78745937]
[1763626831159,9.27978036,143.48,143.45,0.7]
[1763626831347,8.62978036,143.48,143.45,0.7]
[1763626831552,6.96978036,143.48,143.45,0.7]
[1763626831852,1.66,143.47,143.45,0.7]
[1763626832052,1.66,143.46,143.45,0.7]
[1763626835153,1.66,143.46,143.45,11.75852891]
[1763626835970,1.66,143.46,143.45,0.7]
[1763626836155,1.66,143.46,143.45,4.78745937]
[1763626837090,1.66,143.46,143.44,4.08745937]
[1763626837257,1.66,143.46,143.45,0.7]
[1763626838087,1.66,143.46,143.45,4.78745937]
[1763626838264,1.66,143.46,143.45,11.75852942]
[1763626840582,1.66,143.46,143.45,7.67107005]
[1763626840760,1.66,143.46,143.45,11.75852942]
[1763626842584,6.96930894,143.49,143.45,11.75852942]
[1763626842792,1.66,143.48,143.46,0.7]
[1763626844674,7.61873939,143.5,143.46,7.67036504]
[1763626844894,1.66,143.49,143.46,11.75782441]
[1763626845086,1.66,143.49,143.47,0.7]
[1763626845902,1.66,143.49,143.46,11.05782441]
[1763626846105,1.66,143.49,143.46,11.75782441]
[1763626847204,8.62913198,143.49,143.46,11.75782441]
[1763626847406,1.66,143.49,143.46,11.75782441]
[1763626848893,0.65,143.5,143.46,9.5861421]
[1763626849094,1.66,143.49,143.47,0.7]
[1763626849297,0.65,143.5,143.47,10.28583907]
[1763626849501,34.82946945,143.56,143.47,10.28583907]
[1763626849502,0.65,143.52,143.49,2.61577706]
[1763626849706,1.66,143.51,143.49,2.61577706]
[1763626850298,1.66,143.51,143.48,3.31577706]
[1763626851420,9.27819812,143.51,143.48,0.7]
[1763626851794,8.62819812,143.51,143.48,0.7]
[1763626858016,7.81508063,143.58,143.51,18.12096]
[1763626858198,1.66,143.57,143.55,2.61577706]
[1763626858391,1.66,143.57,143.54,2.61577706]
[1763626858822,1.66,143.57,143.54,3.29577706]
[1763626859205,8.62562168,143.57,143.54,3.29577706]
[1763626860098,9.27562168,143.57,143.54,2.61577706]
[1763626860306,9.27535723,143.57,143.54,2.61577706]
[1763626860823,9.27535723,143.57,143.53,0.68]
[1763626860991,9.27535723,143.57,143.54,2.61577706]
[1763626861400,9.27535723,143.57,143.54,3.29577706]
[1763626861623,9.27535723,143.57,143.54,0.68]
[1763626861827,9.27535723,143.57,143.51,18.12096]
[1763626862112,0.65,143.56,143.52,3.29577706]
[1763626862298,1.66,143.55,143.54,2.61577706]
[1763626862700,1.66,143.55,143.53,2.61577706]
[1763626863010,7.16479404,143.58,143.54,3.29577706]
[1763626863198,1.66,143.57,143.55,2.61577706]
[1763626863394,1.66,143.57,143.55,3.29577706]
[1763626863928,1.66,143.57,143.56,0.68]
[1763626864414,1.66,143.57,143.55,3.29577706]
[1763626864614,1.66,143.57,143.56,3.29577706]
[1763626865212,1.66,143.57,143.56,2.61577706]
[1763626865412,1.66,143.57,143.55,10.26180067]
[1763626865928,1.66,143.57,143.55,9.58180067]
[1763626866222,0.2,143.58,143.56,3.29577706]
[1763626866528,0.2,143.58,143.57,2.61577706]
[1763626866694,1.86,143.58,143.57,3.29577706]
[1763626867228,1.86,143.58,143.57,0.68]
[1763626867404,1.86,143.58,143.57,2.61577706]
[1763626867606,1.86,143.58,143.55,0.68]
[1763626867830,1.86,143.58,143.55,2.61577706]
[1763626867998,1.86,143.58,143.55,3.29577706]
[1763626868694,1.86,143.58,143.55,0.68]
[1763626868922,1.86,143.58,143.56,2.61577706]
[1763626869320,1.86,143.58,143.55,0.68]
[1763626869321,1.86,143.58,143.55,3.29577706]
[1763626869618,1.86,143.58,143.55,0.68]
[1763626870117,1.86,143.58,143.55,3.29577706]
[1763626871512,8.82495289,143.58,143.54,6.96652507]
[1763626871724,0.65,143.57,143.53,2.61577706]
[1763626871926,0.2,143.58,143.54,2.61577706]
[1763626872236,1.66,143.57,143.56,2.61577706]
[1763626872523,0.2,143.58,143.57,0.68]
[1763626872823,1.86,143.58,143.57,3.29577706]
[1763626873203,1.86,143.58,143.55,0.68]
[1763626873403,0.2,143.58,143.57,2.61577706]
[1763626873615,1.86,143.58,143.57,2.61577706]
[1763626874327,1.86,143.58,143.56,10.26143283]
[1763626874513,2.51,143.58,143.56,2.61577706]
[1763626876427,0.2,143.58,143.57,3.29577706]
[1763626876623,1.86,143.58,143.57,2.61577706]
[1763626878031,1.86,143.58,143.56,3.29577706]
[1763626878216,1.86,143.58,143.56,0.68]
[1763626878417,1.86,143.58,143.56,3.29577706]
[1763626878818,1.86,143.58,143.56,0.68]
[1763626879025,8.82479674,143.58,143.56,0.68]
[1763626879225,1.86,143.58,143.56,3.29577706]
[1763626880836,1.86,143.58,143.57,2.61577706]
[1763626881321,0.2,143.58,143.57,2.61577706]
[1763626881516,1.86,143.58,143.57,2.61577706]
[1763626883321,0.2,143.58,143.57,2.61577706]
[1763626883517,1.86,143.58,143.57,3.33577706]
[1763626884840,1.86,143.58,143.56,0.72]
[1763626885023,1.86,143.58,143.57,2.61577706]
[1763626885346,1.86,143.58,143.57,3.33577706]
[1763626888123,0.2,143.58,143.57,10.30102049]
[1763626888328,1.86,143.58,143.57,10.30102049]
[1763626889442,0.2,143.58,143.57,10.30102049]
[1763626889647,1.86,143.58,143.57,10.30102049]
[1763626891246,0.2,143.58,143.57,10.30102049]
[1763626891421,1.86,143.58,143.57,10.30102049]
[1763626892336,0.2,143.58,143.57,12.91679755]
[1763626892536,1.86,143.58,143.57,20.76412873]
[1763626893443,0.2,143.58,143.57,20.76412873]
[1763626895753,0.2,143.58,143.57,10.30102049]
[1763626896050,0.85,143.58,143.56,2.61577706]
[1763626896524,0.2,143.58,143.56,2.61577706]
[1763626896846,0.2,143.58,143.57,2.61577706]
[1763626897354,1.86,143.58,143.57,2.61577706]
[1763626900833,1.86,143.58,143.57,3.27577706]
[1763626901041,1.86,143.58,143.57,2.61577706]
[1763626901731,1.86,143.58,143.57,3.27577706]
[1763626901926,1.86,143.58,143.57,2.61577706]
[1763626902436,1.86,143.58,143.57,10.24102049]
[1763626903140,1.86,143.58,143.57,3.27577706]
[1763626904449,1.86,143.58,143.57,0.66]
[1763626904750,1.86,143.58,143.57,3.27577706]
[1763626906428,1.86,143.58,143.57,10.24102049]
[1763626906628,1.86,143.58,143.57,20.70412873]
[1763626907752,0.2,143.58,143.57,20.70412873]
[1763626907928,1.86,143.58,143.57,20.70412873]
[1763626908550,0.2,143.6,143.57,20.70412873]
[1763626908551,0.2,143.6,143.57,38.11723731]
[1763626908852,0.2,143.64,143.6,9.78882769]
[1763626909055,0.5,143.65,143.64,9.78882769]
[1763626909230,0.2,143.65,143.64,17.93947747]
[1763626909434,0.2,143.65,143.64,18.59947747]
[1763626909630,0.2,143.7,143.64,18.59947747]
[1763626909835,1.66,143.68,143.65,14.52415258]
[1763626910226,1.66,143.68,143.65,21.485517]
[1763626911941,0.2,143.7,143.65,21.485517]
[1763626911942,1.86,143.7,143.66,9.78882769]
[1763626912255,1.86,143.7,143.69,11.03475143]
[1763626913162,1.86,143.7,143.69,4.07532489]
[1763626913352,0.2,143.7,143.69,11.72475143]
[1763626913938,0.2,143.7,143.69,4.76532489]
[1763626914142,0.2,143.7,143.69,11.72475143]
[1763626914344,0.2,143.7,143.69,4.76532489]
[1763626914643,0.2,143.7,143.69,11.72475143]
[1763626919360,0.2,143.7,143.69,4.07532489]
[1763626919361,0.9,143.7,143.69,4.07532489]
[1763626919861,0.2,143.7,143.69,4.07532489]
[1763626920236,0.2,143.7,143.69,11.03475143]
[1763626920756,0.2,143.7,143.69,11.72475143]
[1763626921361,0.2,143.7,143.69,4.76532489]
[1763626921735,0.2,143.7,143.69,4.07532489]
[1763626922363,1.86,143.7,143.69,4.07532489]
[1763626922565,2.56,143.7,143.69,4.07532489]
[1763626923164,2.56,143.7,143.67,6.96029991]
[1763626923165,1.86,143.7,143.67,6.96029991]
[1763626923348,1.86,143.7,143.69,4.07532489]
[1763626923552,0.7,143.69,143.68,4.07532489]
[1763626924664,2.56,143.7,143.68,4.07532489]
[1763626924958,2.56,143.7,143.69,4.07532489]
[1763626925162,0.7,143.69,143.66,0.69]
[1763626925363,0.7,143.69,143.68,4.07532489]
[1763626926754,2.36,143.69,143.68,4.07532489]
[1763626926955,9.31952374,143.69,143.64,25.08235459]
[1763626927167,0.7,143.68,143.66,4.07532489]
[1763626927341,0.7,143.68,143.65,4.07532489]
[1763626927546,0.7,143.68,143.64,4.07532489]
[1763626927773,4.77532489,143.68,143.64,4.07532489]
[1763626927940,4.07532489,143.66,143.62,4.07532489]
[1763626928273,26.01809009,143.69,143.63,4.07532489]
[1763626928274,1.66,143.65,143.63,4.07532489]
[1763626928477,1.66,143.64,143.63,4.07532489]
[1763626929048,2.36,143.64,143.63,4.07532489]
[1763626929268,1.66,143.64,143.63,4.07532489]
[1763626929486,1.66,143.64,143.63,11.72765866]
[1763626930056,1.66,143.64,143.63,4.76532489]
[1763626930668,1.66,143.64,143.63,11.72765866]
[1763626930982,1.66,143.64,143.63,4.76532489]
[1763626931153,1.66,143.64,143.63,11.72765866]
[1763626931647,1.66,143.64,143.63,4.76532489]
[1763626932257,1.66,143.64,143.63,11.72765866]
[1763626933280,1.66,143.64,143.63,4.76532489]
[1763626933576,7.66048761,143.67,143.63,11.72765866]
[1763626933875,1.66,143.66,143.63,7.65233377]
[1763626935051,1.66,143.66,143.65,4.07532489]
[1763626936776,6.95954171,143.69,143.65,11.72666587]
[1763626937075,1.66,143.66,143.65,6.96134098]
[1763626937370,0.2,143.7,143.66,0.69]
[1763626937578,1.66,143.69,143.66,0.69]
[1763626937754,1.66,143.69,143.64,4.07532489]
[1763626937755,1.66,143.69,143.64,4.76532489]
[1763626937955,2.36,143.69,143.65,0.69]
[1763626938150,2.36,143.69,143.67,4.07532489]
[1763626938549,9.31943492,143.69,143.68,4.07532489]
[1763626938766,2.36,143.69,143.68,4.07532489]
[1763626939476,9.31942654,143.69,143.68,4.07532489]
[1763626939671,2.36,143.69,143.68,4.07532489]
[1763626940163,2.36,143.69,143.65,7.65109176]
[1763626940363,2.36,143.69,143.68,4.07532489]
[1763626941273,9.31942654,143.69,143.68,4.07532489]
[1763626943180,7.65942654,143.69,143.68,4.07532489]
[1763626943478,9.31942654,143.69,143.68,4.07532489]
[1763626943678,1.66,143.69,143.68,4.07532489]
[1763626948902,0.2,143.7,143.68,11.7552358]
[1763626949070,0.2,143.7,143.69,4.79532489]
[1763626949263,1.26,143.7,143.69,4.79532489]
[1763626950288,0.2,143.7,143.69,4.79532489]
[1763626950669,0.2,143.7,143.69,7.67942654]
[1763626950992,0.2,143.71,143.7,4.07532489]
[1763626951160,0.2,143.71,143.7,4.79532489]
[1763626952362,0.2,143.71,143.7,11.75426713]
[1763626959990,0.2,143.71,143.7,75.61841971]
[1763626960166,1e-08,143.71,143.7,137.71841971]
[1763626960367,0.2,143.72,143.71,27.90978769]
[1763626960596,0.2,143.72,143.71,36.78043747]
[1763626961768,0.2,143.72,143.71,18.65947747]
[1763626961970,0.2,143.72,143.71,31.45329463]
[1763626962367,0.2,143.72,143.71,39.66357058]
[1763626965978,0.2,143.72,143.7,11.03408306]
[1763626966300,0.2,143.72,143.68,4.07532489]
[1763626966301,0.91,143.72,143.68,4.07532489]
[1763626966683,0.71,143.71,143.67,11.03572024]
[1763626967476,0.71,143.71,143.68,4.07532489]
[1763626969585,0.71,143.71,143.68,11.03503987]
[1763626970103,0.71,143.71,143.68,11.75503987]
[1763626970305,0.71,143.71,143.68,11.03503987]
[1763626970805,7.15817097,143.72,143.7,2.60690429]
[1763626970806,0.2,143.72,143.7,2.60690429]
[1763626970993,1.66,143.71,143.7,2.60690429]
[1763626971313,1.66,143.71,143.69,2.60690429]
[1763626971481,2.35,143.71,143.69,2.60690429]
[1763626972103,2.35,143.71,143.69,9.5662413]
[1763626972804,0.69,143.7,143.68,6.95975261]
[1763626973107,0.69,143.7,143.68,9.5666569]
[1763626973313,1.66,143.71,143.68,9.5666569]
[1763626973489,0.69,143.7,143.68,9.5666569]
[1763626975288,1.66,143.71,143.69,2.60690429]
[1763626975484,0.69,143.7,143.68,6.95975261]
[1763626975804,0.69,143.7,143.68,2.60690429]
[1763626976010,0.69,143.7,143.68,9.56678939]
[1763626977017,0.69,143.7,143.67,7.66019884]
[1763626977218,0.69,143.7,143.68,2.60690429]
[1763626977408,0.69,143.7,143.67,7.66019884]
[1763626977409,0.69,143.7,143.67,2.60690429]
[1763626977585,0.69,143.7,143.66,9.5676677]
[1763626977906,2.60690429,143.69,143.64,7.66177931]
[1763626978229,7.64907224,143.7,143.64,7.66177931]
[1763626978230,9.5668152,143.68,143.64,2.60690429]
[1763626978515,1.66,143.67,143.64,2.60690429]
[1763626978818,0.69,143.66,143.64,2.60690429]
[1763626979319,0.69,143.66,143.63,2.60690429]
[1763626979484,0.69,143.66,143.62,2.60690429]
[1763626979695,3.29690429,143.66,143.62,2.60690429]
[1763626980188,0.69,143.65,143.63,2.60690429]
[1763626980908,1.66,143.64,143.63,2.60690429]
[1763626981207,1.66,143.64,143.62,2.60690429]
[1763626981416,2.35,143.64,143.62,2.60690429]
[1763626981892,3.29690429,143.63,143.56,23.25306826]
[1763626982094,9.56972283,143.62,143.57,2.60690429]
[1763626982403,10.25972283,143.62,143.55,11.30189703]
[1763626982711,0.69,143.61,143.57,2.60690429]
[1763626982912,1.66,143.6,143.57,2.60690429]
[1763626983414,2.35,143.6,143.57,2.60690429]
[1763626984095,0.69,143.59,143.56,2.60690429]
[1763626984496,0.69,143.59,143.55,6.24271252]
[1763626984888,3.29690429,143.59,143.55,6.24271252]
[1763626985420,0.69,143.58,143.55,13.20886995]
[1763626986121,0.69,143.61,143.57,2.60690429]
[1763626986288,1.66,143.6,143.57,2.60690429]
[1763626986824,2.35,143.6,143.57,2.60690429]
[1763626988188,2.35,143.6,143.57,9.57214562]
[1763626989311,2.35,143.6,143.57,2.60690429]
[1763626989312,9.31388355,143.6,143.57,2.60690429]
[1763626989609,9.31388355,143.6,143.55,3.63580823]
[1763626989610,2.60690429,143.58,143.55,3.63580823]
[1763626989811,4.26690429,143.57,143.53,0.1]
[1763626990193,7.65615379,143.56,143.53,0.1]
[1763626990393,10.26305808,143.56,143.53,0.1]
[1763626990595,0.69,143.55,143.53,0.1]
[1763626990795,1.66,143.54,143.53,0.1]
[1763626993105,11.92360346,143.54,143.53,0.1]
[1763626993736,11.92360346,143.54,143.51,0.1]
[1763626993905,2.60690429,143.52,143.51,0.1]
[1763626994227,9.5745743,143.52,143.51,0.1]
[1763626994432,10.2645743,143.52,143.51,0.1]
[1763626994935,0.69,143.52,143.51,0.1]
[1763626995232,11.9245743,143.52,143.51,0.1]
[1763626997010,10.2645743,143.52,143.51,0.1]
[1763626997317,11.9245743,143.52,143.51,0.1]
[1763626998118,9.31767001,143.52,143.51,0.1]
[1763626998327,11.9245743,143.52,143.51,0.1]
[1763627000039,10.2645743,143.52,143.51,0.1]
[1763627000222,11.9245743,143.52,143.51,0.1]
[1763627001314,18.12096,143.49,143.45,3.64008577]
[1763627003522,11.88800287,143.45,143.42,0.1]
[1763627003720,2.60690429,143.44,143.42,0.1]
[1763627004407,9.28109858,143.45,143.42,0.1]
[1763627004408,11.23800287,143.45,143.42,0.77]
[1763627005124,2.60690429,143.47,143.42,10.34942896]
[1763627005320,1.66,143.46,143.43,3.27690429]
[1763627005636,11.23750377,143.46,143.43,0.67]
[1763627006320,9.57750377,143.46,143.43,0.67]
[1763627006531,1.66,143.45,143.43,0.67]
[1763627009631,0.65,143.5,143.43,7.64197203]
[1763627009945,1.66,143.49,143.45,2.60690429]
[1763627010130,1.66,143.49,143.46,2.60690429]
[1763627010337,2.60690429,143.51,143.47,2.60690429]
[1763627010526,1.66,143.5,143.47,2.60690429]
[1763627010724,17.41855165,143.53,143.48,3.30690429]
[1763627010725,26.9926405,143.53,143.48,3.30690429]
[1763627011041,1.66,143.52,143.48,3.30690429]
[1763627011642,6.96815552,143.51,143.48,3.30690429]
[1763627011842,11.88476912,143.52,143.48,3.30690429]
[1763627012228,11.88476912,143.52,143.48,0.7]
[1763627015323,11.88476912,143.52,143.48,3.30690429]
[1763627015526,11.23476912,143.52,143.48,3.30690429]
[1763627015845,1.66,143.51,143.49,3.30690429]
[1763627016745,1.66,143.51,143.5,0.7]
[1763627017119,1.66,143.51,143.5,3.30690429]
[1763627018069,9.57365994,143.54,143.5,3.30690429]
[1763627018343,1.66,143.53,143.51,0.7]
[1763627018522,1.66,143.53,143.5,3.30690429]
[1763627019654,1.66,143.53,143.51,0.7]
[1763627021557,2.60690429,143.55,143.51,3.30690429]
[1763627021724,1.66,143.54,143.52,0.7]
[1763627023753,11.88367265,143.54,143.49,0.7]
[1763627024048,1.66,143.53,143.51,2.60690429]
[1763627024347,1.66,143.52,143.51,2.60690429]
[1763627024523,1.66,143.52,143.51,0.7]
[1763627026856,1.66,143.52,143.51,10.27505981]
[1763627027040,1.66,143.52,143.51,3.30690429]
[1763627030058,1.66,143.52,143.5,3.29690429]
[1763627030864,1.66,143.52,143.5,4.77449826]
[1763627031162,1.66,143.52,143.51,0.69]
[1763627033438,1.66,143.52,143.51,11.74265378]
[1763627035356,1.66,143.52,143.51,4.77449826]
[1763627035581,1.66,143.52,143.49,18.12096]
[1763627035859,1.66,143.52,143.5,4.77449826]
[1763627037038,1.66,143.52,143.45,4.77449826]
[1763627037039,4.73449826,143.51,143.45,4.77449826]
[1763627037260,4.73449826,143.51,143.44,15.38524804]
[1763627037261,4.08449826,143.48,143.44,15.38524804]
[1763627037454,1.66,143.47,143.44,15.38524804]
[1763627037657,1.66,143.47,143.45,0.69]
[1763627040368,18.12096,143.53,143.45,0.69]
[1763627040369,0.65,143.54,143.46,4.08449826]
[1763627040591,5.74449826,143.53,143.49,4.08449826]
[1763627040886,6.39449826,143.53,143.49,4.08449826]
[1763627041074,5.74449826,143.53,143.49,0.69]
[1763627041375,6.96815552,143.51,143.48,4.08449826]
[1763627041579,1.66,143.5,143.49,0.69]
[1763627041866,1.66,143.5,143.48,4.08449826]
[1763627042066,1.66,143.5,143.48,4.77449826]
[1763627042270,1.66,143.5,143.49,0.69]
[1763627042850,1.66,143.5,143.48,4.77449826]
[1763627043045,1.66,143.5,143.49,0.69]
[1763627050179,1.66,143.5,143.49,4.77449826]
[1763627050480,1.66,143.5,143.49,11.74362502]
[1763627050680,1.66,143.5,143.49,4.77449826]
[1763627050973,8.96976116,143.59,143.49,4.77449826]
[1763627050974,11.70032193,143.56,143.49,11.74362502]
[1763627051278,1.66,143.55,143.51,4.08449826]
[1763627051577,2.31,143.55,143.51,4.08449826]
[1763627051776,2.31,143.55,143.51,4.77449826]
[1763627051965,4.08449826,143.53,143.49,4.77449826]
[1763627052161,1.66,143.52,143.48,6.96943771]
[1763627052360,1.66,143.52,143.49,4.77449826]
[1763627052559,2.31,143.52,143.49,0.69]
[1763627053088,9.27784593,143.52,143.49,0.69]
[1763627053272,1.66,143.51,143.49,0.69]
[1763627053470,1.66,143.51,143.48,11.05393597]
[1763627053665,1.66,143.51,143.48,11.74393597]
[1763627055080,1.66,143.51,143.49,0.69]
[1763627055271,1.66,143.51,143.48,11.74393597]
[1763627057890,1.66,143.51,143.49,0.69]
[1763627060172,4.73449826,143.53,143.49,0.69]
[1763627060173,7.61725674,143.53,143.5,4.08449826]
[1763627060490,1.66,143.52,143.5,4.75449826]
[1763627060881,1.66,143.52,143.49,4.75449826]
[1763627061388,0.65,143.53,143.5,4.75449826]
[1763627061691,1.66,143.51,143.5,4.75449826]
[1763627061892,1.66,143.51,143.5,4.08449826]
[1763627062085,2.31,143.51,143.48,12.82340651]
[1763627062270,2.31,143.51,143.49,4.08449826]
[1763627062271,1.66,143.51,143.49,4.08449826]
[1763627062466,9.27819928,143.51,143.48,4.75449826]
[1763627063384,9.27819928,143.51,143.48,0.67]
[1763627064670,9.27819928,143.51,143.48,4.75449826]
[1763627064671,8.62819928,143.51,143.48,4.75449826]
[1763627064981,9.27819928,143.51,143.48,4.08449826]
[1763627065192,9.27819928,143.51,143.48,4.75449826]
[1763627065393,9.27819928,143.51,143.48,4.08449826]
[1763627065902,9.27819928,143.51,143.47,4.08449826]
[1763627066070,9.27819928,143.51,143.47,4.75449826]
[1763627066672,1.66,143.5,143.47,4.75449826]
[1763627066874,1.66,143.5,143.47,4.08449826]
[1763627067407,1.66,143.5,143.47,4.75449826]
[1763627068406,1.66,143.5,143.48,4.08449826]
[1763627068594,1.66,143.5,143.48,4.80449826]
[1763627068792,8.62871745,143.5,143.48,0.72]
[1763627069389,1.66,143.5,143.48,4.80449826]
[1763627070011,1.66,143.5,143.49,4.08449826]
[1763627070319,1.66,143.5,143.49,4.80449826]
[1763627070690,1.66,143.5,143.49,0.72]
[1763627071101,1.66,143.5,143.49,4.80449826]
[1763627071700,1.66,143.5,143.48,4.08449826]
[1763627072098,8.62864361,143.5,143.48,4.08449826]
[1763627072306,8.62864361,143.5,143.48,4.80449826]
[1763627074129,8.62864361,143.5,143.46,13.54472688]
[1763627074302,9.27864361,143.5,143.47,4.08449826]
[1763627074604,8.62864361,143.5,143.47,4.80449826]
[1763627079722,9.27864361,143.5,143.47,4.08449826]
[1763627080438,9.27864361,143.5,143.46,10.65868228]
[1763627080822,9.27864361,143.5,143.45,9.93868228]
[1763627080823,0.65,143.49,143.45,9.93868228]
[1763627081141,4.73449826,143.49,143.44,10.65868228]
[1763627081533,0.65,143.48,143.44,10.65868228]
[1763627081847,8.63009827,143.47,143.45,0.72]
[1763627082218,8.63009827,143.47,143.46,4.08449826]
[1763627084954,9.28009827,143.47,143.43,6.57418402]